fUST/lending_fUST_20250621
["ID","MTS","AMOUNT","RATE_DAILY","PERIOD"]
[366851871,1750515042806,-836.41202323,0.00023135,2]
[366851873,1750515042816,-300.0,0.00023209,2]
[366851875,1750515042825,-1200.0,0.00023313,2]
[366851876,1750515042835,-527.76882115,0.00023371,2]
[366851878,1750515042844,-300.0,0.00023468,2]
[366851880,1750515042854,-300.0,0.00023468,2]
[366851881,1750515042863,-500.0,0.00023468,2]
[366851883,1750515042873,-500.0,0.00023468,2]
[366851884,1750515042882,-500.0,0.00023468,2]
[366851886,1750515042892,-325.23482509,0.00023468,2]
[366851887,1750515042901,-500.0,0.00023468,2]
[366851889,1750515042911,-500.0,0.00023468,2]
[366851891,1750515042922,-500.0,0.00023468,2]
[366851893,1750515042932,-500.0,0.00023468,2]
[366851894,1750515042941,-500.0,0.00023468,2]
[366851895,1750515042950,-500.0,0.00023468,2]
[366851896,1750515042960,-500.0,0.00023468,2]
[366851897,1750515042969,-500.0,0.00023468,2]
[366851898,1750515042979,-500.0,0.00023468,2]
[366851899,1750515042988,-500.0,0.00023468,2]
[366851901,1750515042998,-500.0,0.00023468,2]
[366851903,1750515043008,-339.40646815,0.00023468,2]
[366851905,1750515043017,-354.16369836,0.00023468,2]
[366851907,1750515043026,-500.0,0.00023468,2]
[366851909,1750515043036,-500.0,0.00023468,2]
[366851910,1750515043046,-500.0,0.00023468,2]
[366851912,1750515043055,-619.2219899,0.00023468,2]
[366851914,1750515043065,-500.0,0.00023468,2]
[366851916,1750515043075,-500.0,0.00023468,2]
[366851917,1750515043085,-500.0,0.00023468,2]
[366851918,1750515043095,-500.0,0.00023468,2]
[366851919,1750515043104,-500.0,0.00023468,2]
[366851920,1750515043114,-344.96594108,0.00023468,2]
[366851921,1750515043123,-500.0,0.00023468,2]
[366851922,1750515043133,-500.0,0.00023468,2]
[366851923,1750515043142,-500.0,0.00023468,2]
[366851924,1750515043152,-500.0,0.00023468,2]
[366851925,1750515043161,-384.26568981,0.00023468,2]
[366851926,1750515043171,-500.0,0.00023468,2]
[366851927,1750515043180,-500.0,0.00023468,2]
[366851928,1750515043191,-500.0,0.00023468,2]
[366851929,1750515043202,-500.0,0.00023468,2]
[366851930,1750515043212,-500.0,0.00023468,2]
[366851931,1750515043222,-500.0,0.00023468,2]
[366851932,1750515043231,-500.0,0.00023468,2]
[366851933,1750515043240,-4620.95,0.00023472,2]
[366851934,1750515043250,-527.76882115,0.0002362,2]
[366851935,1750515043261,-424.93363889,0.0002374,2]
[366851936,1750515043270,-500.0,0.00023764,2]
[366851937,1750515043280,-500.0,0.00023764,2]
[366851938,1750515043289,-500.0,0.00023764,2]
[366851939,1750515043298,-500.0,0.00023764,2]
[366851940,1750515043308,-500.0,0.00023764,2]
[366851941,1750515043318,-517.40778635,0.00023764,2]
[366851942,1750515043327,-500.0,0.00023764,2]
[366851943,1750515043337,-500.0,0.00023825,2]
[366851944,1750515043346,-158.998,0.00023831,5]
[366851945,1750515043355,-207.4,0.00023855,2]
[366851946,1750515043468,-5000.0,0.00023855,2]
[366851947,1750515043477,-527.76882115,0.00023869,2]
[366851948,1750515043487,-150.0,0.00023871,2]
[366851949,1750515043497,-150.0,0.00023871,2]
[366851950,1750515043506,-965.0,0.00023871,2]
[366851951,1750515043516,-654.0,0.00023871,2]
[366851952,1750515043525,-2161.0,0.00023871,2]
[366851953,1750515043535,-500.0,0.00023933,2]
[366851954,1750515043545,-230.10342898,0.00023958,2]
[366851955,1750515043555,-160.0,0.00023958,2]
[366851956,1750515043565,-213.55395994,0.00023961,2]
[366851957,1750515043575,-160.0,0.00023961,2]
[366851958,1750515043583,-500.0,0.00023982,2]
[366851959,1750515043593,-500.0,0.00023982,2]
[366851960,1750515043603,-267.12765864,0.00023982,2]
[366851961,1750515043612,-500.0,0.00023982,2]
[366851962,1750515043623,-500.0,0.00023982,2]
[366851963,1750515043633,-500.0,0.00023982,2]
[366851964,1750515043642,-219.50068005,0.00023982,2]
[366851965,1750515043652,-500.0,0.00023982,2]
[366851966,1750515043661,-500.0,0.00023982,2]
[366851967,1750515043672,-500.0,0.00023982,2]
[366851968,1750515043681,-500.0,0.00023982,2]
[366851969,1750515043691,-294.63277706,0.00023982,2]
[366851970,1750515043702,-500.0,0.00023983,2]
[366851971,1750515043711,-500.0,0.00023983,2]
[366851972,1750515043721,-1000.0,0.00023995,2]
[366851973,1750515043731,-500.0,0.00024,2]
[366851974,1750515043740,-546.05,0.00024,2]
[366851975,1750515043749,-475.18218582,0.00024,2]
[366851976,1750515043758,-500.0,0.00024,2]
[366851977,1750515043768,-500.0,0.00024,2]
[366851978,1750515043778,-523.9660634,0.00024,3]
[366851979,1750515043788,-508.00991228,0.0002403,2]
[366851980,1750515043797,-500.0,0.0002405,2]
[366851981,1750515043806,-500.0,0.00024109,2]
[366851982,1750515043816,-527.76882115,0.00024118,2]
[366851983,1750515043825,-858.95690863,0.00024175,2]
[366851984,1750515043835,-501.95007019,0.00024263,2]
[366851985,1750515043844,-500.0,0.00024263,2]
[366851986,1750515043854,-1000.0,0.00024312,2]
[366851987,1750515043863,-1000.0,0.00024312,2]
[366851988,1750515043872,-590.96566822,0.00024312,2]
[366851989,1750515043882,-505.8764289,0.00024312,2]
[366851990,1750515043892,-197.15218921,0.00024312,2]
[366851991,1750515043903,-527.76882115,0.00024368,2]
[366851992,1750515043913,-500.0,0.00024373,2]
[366851993,1750515043923,-513.131947,0.00024401,4]
[366851994,1750515043932,-1000.0,0.00024481,2]
[366851995,1750515043942,-1000.0,0.00024531,2]
[366851996,1750515043951,-500.0,0.00024531,2]
[366851997,1750515043960,-1000.0,0.00024548,2]
[366851998,1750515043970,-348.99786826,0.00024598,2]
[366851999,1750515043980,-1551.6,0.000246,2]
[366852000,1750515043989,-2000.0,0.000246,2]
[366852001,1750515043999,-640.0,0.000246,2]
[366852002,1750515044009,-500.0,0.00024606,7]
[366852003,1750515044018,-527.76882115,0.00024617,2]
[366852004,1750515044028,-200.11,0.00024647,10]
[366852005,1750515044037,-460.0,0.00024657,3]
[366852006,1750515044046,-460.0,0.00024657,3]
[366852007,1750515044056,-474.34674775,0.00024657,3]
[366852008,1750515044065,-460.0,0.00024657,3]
[366852009,1750515044075,-488.0488373,0.00024657,3]
[366852010,1750515044085,-213.55395994,0.00024657,3]
[366852011,1750515044095,-460.0,0.00024657,3]
[366852012,1750515044104,-460.0,0.00024657,3]
[366852013,1750515044113,-383.2,0.00024657,3]
[366852014,1750515044123,-460.0,0.00024657,3]
[366852015,1750515044133,-460.0,0.00024657,3]
[366852016,1750515044143,-460.0,0.00024657,3]
[366852017,1750515044153,-460.0,0.00024657,3]
[366852018,1750515044162,-516.12,0.00024657,3]
[366852019,1750515044172,-476.84396356,0.00024657,3]
[366852020,1750515044182,-460.0,0.00024657,3]
[366852021,1750515044192,-460.0,0.00024657,3]
[366852022,1750515044203,-538.84,0.00024657,3]
[366852023,1750515044213,-460.0,0.00024657,3]
[366852024,1750515044223,-460.0,0.00024657,3]
[366852025,1750515044232,-460.0,0.00024657,3]
[366852026,1750515044242,-487.62165449,0.00024657,3]
[366852027,1750515044252,-460.0,0.00024657,3]
[366852028,1750515044261,-339.81,0.00024657,3]
[366852029,1750515044271,-460.0,0.00024657,3]
[366852030,1750515044281,-265.25,0.00024657,3]
[366852031,1750515044290,-460.0,0.00024657,3]
[366852032,1750515044300,-212.20657304,0.00024657,3]
[366852033,1750515044309,-460.0,0.00024657,3]
[366852034,1750515044318,-460.0,0.00024657,3]
[366852035,1750515044328,-460.0,0.00024657,3]
[366852036,1750515044337,-460.0,0.00024657,3]
[366852037,1750515044347,-460.0,0.00024657,3]
[366852038,1750515044356,-460.0,0.00024657,3]
[366852039,1750515044366,-472.48,0.00024657,3]
[366852040,1750515044375,-460.0,0.00024657,3]
[366852041,1750515044385,-475.38,0.00024657,3]
[366852042,1750515044394,-523.17,0.00024657,3]
[366852043,1750515044403,-460.0,0.00024657,3]
[366852044,1750515044414,-153.09,0.00024657,3]
[366852045,1750515044424,-460.0,0.00024657,3]
[366852046,1750515044433,-483.43,0.00024657,3]
[366852047,1750515044442,-460.0,0.00024657,3]
[366852048,1750515044452,-460.0,0.00024657,3]
[366852049,1750515044462,-34.06550432,0.00024657,3]
[366852050,1750515044476,-268.66199986,0.00024657,3]
[366852056,1750515045782,-157.27249582,0.00024657,3]
[366852057,1750515045791,-460.0,0.00024657,3]
[366852058,1750515045800,-201.22,0.00024657,3]
[366852059,1750515045810,-460.0,0.00024657,3]
[366852060,1750515045819,-460.0,0.00024657,3]
[366852061,1750515045829,-429.1,0.00024657,3]
[366852062,1750515045838,-460.0,0.00024657,3]
[366852063,1750515045847,-460.0,0.00024657,3]
[366852064,1750515045857,-460.0,0.00024657,3]
[366852065,1750515045867,-241.97604476,0.00024657,3]
[366852066,1750515046047,-218.02395524,0.00024657,3]
[366852067,1750515046056,-323.57314815,0.00024657,3]
[366852068,1750515108835,7236.84392223,0.00025218,90]
[366852069,1750515930108,-240.0,0.00021863,3]
[366852070,1750515930635,-1200.0,0.00022662,2]
[366852071,1750515930658,-3753.11592331,0.00022663,2]
[366852079,1750516033074,-1946.3744274,0.00022663,2]
[366852081,1750516126349,-163.01974408,0.0002,7]
[366852082,1750516148084,-490.0,0.0002,7]
[366852083,1750516157061,-66.62767745,0.0002,7]
[366852111,1750516232225,-1401.0,0.00022437,2]
[366852112,1750516232739,-4300.50964929,0.00022663,2]
[366852113,1750516232748,-160.0,0.00023347,2]
[366852114,1750516232758,-230.10342898,0.00023347,2]
[366852115,1750516232768,-207.4,0.00023436,2]
[366852116,1750516232778,-846.23824438,0.00023443,2]
[366852117,1750516232787,-12203.26117884,0.00023443,2]
[366852118,1750516232799,-345.91248623,0.00023443,2]
[366852119,1750516232809,-300.0,0.00023444,2]
[366852120,1750516232819,-300.0,0.00023444,2]
[366852121,1750516232829,-190.25072929,0.00023445,2]
[366852122,1750516232839,-371.66288234,0.00023445,2]
[366852123,1750516232850,-291.99507208,0.00023445,2]
[366852124,1750516232860,-235.46910999,0.00023445,2]
[366852125,1750516232869,-299.20284459,0.00023445,2]
[366852152,1750516238039,-500.0,0.00023442,2]
[366852154,1750516238050,-500.0,0.00023442,2]
[366852156,1750516238060,-500.0,0.00023442,2]
[366852158,1750516238070,-500.0,0.00023442,2]
[366852160,1750516238080,-500.0,0.00023442,2]
[366852162,1750516238090,-500.0,0.00023442,2]
[366852164,1750516238100,-500.0,0.00023442,2]
[366852166,1750516238110,-500.0,0.00023442,2]
[366852168,1750516238120,-555.62898752,0.00023442,2]
[366852170,1750516238130,-300.0,0.00023448,2]
[366852172,1750516238140,-158.998,0.00023455,3]
[366852174,1750516238149,-4562.14,0.00023476,2]
[366852176,1750516238160,-150.7910918,0.000238,2]
[366852178,1750516238170,-970.77726253,0.000239,10]
[366852179,1750516238180,-349.80230101,0.00023917,2]
[366852181,1750516238189,-970.77726249,0.00023969,10]
[366852183,1750516238199,-491.45,0.00024,2]
[366852185,1750516238208,-523.9660634,0.00024,3]
[366852187,1750516238218,-150.79109175,0.0002402,2]
[366852189,1750516238227,-970.77726249,0.00024038,10]
[366852191,1750516238237,-970.77726249,0.00024107,10]
[366852193,1750516238247,-406.0,0.00024121,2]
[366852195,1750516238257,-965.0,0.00024121,2]
[366852197,1750516238267,-970.77726249,0.00024176,10]
[366852199,1750516238277,-571.63020484,0.00024201,2]
[366852201,1750516238290,-4428.36979516,0.00024201,2]
[366852203,1750516238300,-150.79109175,0.0002424,2]
[366852205,1750516238310,-500.0,0.00024241,2]
[366852207,1750516238320,-206.24294395,0.00024241,2]
[366852209,1750516238330,-175.26210456,0.00024241,2]
[366852231,1750516238549,-324.73789544,0.00024241,2]
[366852233,1750516238559,-186.98936104,0.00024241,2]
[366852235,1750516238569,-396.62209802,0.00024241,2]
[366852238,1750516238582,-103.37790198,0.00024241,2]
[366852239,1750516238592,-500.0,0.00024241,2]
[366852241,1750516238601,-500.0,0.00024241,2]
[366852243,1750516238610,-500.0,0.00024241,2]
[366852245,1750516238620,-500.0,0.00024241,2]
[366852247,1750516238629,-500.0,0.00024241,2]
[366852249,1750516238638,-500.0,0.00024241,2]
[366852251,1750516238647,-500.0,0.00024241,2]
[366852253,1750516238657,-18.78794246,0.00024241,2]
[366852424,1750516240322,167.0,0.00016932,3]
[366852712,1750516243119,-481.21205754,0.00024241,2]
[366852714,1750516243129,-970.77726249,0.00024245,10]
[366852716,1750516243138,-161.0,0.000243,5]
[366852718,1750516243148,-161.0,0.000243,5]
[366852720,1750516243158,-161.0,0.000243,4]
[366852722,1750516243167,-161.0,0.000243,4]
[366852724,1750516243177,-161.0,0.000243,3]
[366852726,1750516243186,-161.0,0.000243,3]
[366852728,1750516243196,-168.63002736,0.000243,3]
[366852731,1750516243206,-970.77726249,0.00024314,10]
[366852733,1750516243215,-970.77726249,0.00024383,11]
[366852736,1750516243224,-439.827383,0.00024401,4]
[366852739,1750516243234,-550.99538759,0.00024452,11]
[366853909,1750516558846,-168.23,0.00019671,3]
[366853911,1750517147148,-275.70649851,0.00021443,2]
[366853912,1750517147672,-228.77,0.00021863,3]
[366853913,1750517147693,-251.19845042,0.00021875,2]
[366853914,1750517147714,-382.42527462,0.00022,2]
[366853915,1750517236080,-72.26544021,0.00022,2]
[366853916,1750517236101,-300.0,0.00022134,2]
[366853917,1750517236122,-300.0,0.00022135,2]
[366853918,1750517236145,-1200.0,0.00022135,2]
[366853919,1750517236166,-300.0,0.00022135,2]
[366853920,1750517236187,-300.0,0.00022135,2]
[366853921,1750517236209,-300.0,0.00022135,2]
[366853922,1750517236231,-254.9915633,0.00022136,2]
[366853923,1750517349122,-3035.6129515,0.00022136,2]
[366853976,1750517432123,-152.0684397,0.000221,14]
[366853978,1750517432133,-5383.0333054,0.00022136,2]
[366853980,1750517432142,-161.193,0.00022136,2]
[366853982,1750517432151,-300.0,0.00022432,2]
[366853985,1750517432161,-1200.0,0.00022432,2]
[366853987,1750517432171,-500.0,0.00022433,2]
[366853989,1750517432180,-572.95598846,0.00022433,2]
[366853990,1750517432190,-170.19542188,0.00022433,2]
[366853991,1750517432199,-500.0,0.00022433,2]
[366853992,1750517432209,-500.0,0.00022433,2]
[366853993,1750517432218,-500.0,0.00022433,2]
[366853994,1750517432227,-500.0,0.00022433,2]
[366853995,1750517432236,-500.0,0.00022433,2]
[366853996,1750517432245,-500.0,0.00022433,2]
[366853997,1750517432254,-500.0,0.00022433,2]
[366853998,1750517432263,-500.0,0.00022433,2]
[366853999,1750517432275,-500.0,0.00022433,2]
[366854000,1750517432285,-500.0,0.00022433,2]
[366854001,1750517432294,-500.0,0.00022433,2]
[366854002,1750517432303,-646.59183053,0.00022433,2]
[366854003,1750517432312,-500.0,0.00022433,2]
[366854004,1750517432321,-500.0,0.00022433,2]
[366854005,1750517432330,-500.0,0.00022433,2]
[366854006,1750517432339,-500.0,0.00022433,2]
[366854007,1750517432348,-500.0,0.00022433,2]
[366854008,1750517432358,-500.0,0.00022433,2]
[366854009,1750517432367,-182.83702387,0.00022433,2]
[366854010,1750517432376,-374.36595627,0.00022433,2]
[366854011,1750517432385,-592.95382526,0.00022433,2]
[366854012,1750517432394,-366.4206972,0.00022433,2]
[366854013,1750517432406,-133.5793028,0.00022433,2]
[366854014,1750517432416,-500.0,0.00022433,2]
[366854015,1750517432424,-61.42574104,0.00022433,2]
[366854016,1750517432495,-438.57425896,0.00022433,2]
[366854017,1750517432505,-500.0,0.00022433,2]
[366854018,1750517432514,-500.0,0.00022433,2]
[366854020,1750517432524,-500.0,0.00022433,2]
[366854021,1750517432536,-500.0,0.00022433,2]
[366854022,1750517432545,-557.67293476,0.00022433,2]
[366854024,1750517432555,-358.01276333,0.00022433,2]
[366854026,1750517432565,-500.0,0.00022433,2]
[366854028,1750517432574,-500.0,0.00022433,2]
[366854029,1750517432584,-500.0,0.00022433,2]
[366854031,1750517432594,-500.0,0.00022433,2]
[366854033,1750517432604,-500.0,0.00022433,2]
[366854036,1750517432614,-500.0,0.00022433,2]
[366854038,1750517432627,-500.0,0.00022433,2]
[366854040,1750517432637,-500.0,0.00022433,2]
[366854042,1750517432647,-500.0,0.00022433,2]
[366854044,1750517432657,-500.0,0.00022433,2]
[366854046,1750517432667,-500.0,0.00022433,2]
[366854048,1750517432678,-500.0,0.00022433,2]
[366854050,1750517432688,-500.0,0.00022433,2]
[366854052,1750517432697,-500.0,0.00022433,2]
[366854054,1750517432707,-500.0,0.00022433,2]
[366854056,1750517432716,-500.0,0.00022433,2]
[366854058,1750517432726,-500.0,0.00022433,2]
[366854060,1750517432735,-500.0,0.00022433,2]
[366854062,1750517432746,-296.62521975,0.00022433,2]
[366854064,1750517432756,-500.0,0.00022433,2]
[366854066,1750517432765,-500.0,0.00022433,2]
[366854068,1750517432775,-500.0,0.00022433,2]
[366854070,1750517432784,-500.0,0.00022433,2]
[366854072,1750517432793,-500.0,0.00022433,2]
[366854074,1750517432803,-500.0,0.00022433,2]
[366854076,1750517432812,-500.0,0.00022433,2]
[366854078,1750517432821,-500.0,0.00022433,2]
[366854080,1750517432831,-500.0,0.00022433,2]
[366854082,1750517432840,-500.0,0.00022433,2]
[366854084,1750517432850,-500.0,0.00022433,2]
[366854086,1750517432859,-500.0,0.00022433,2]
[366854088,1750517432869,-500.0,0.00022433,2]
[366854090,1750517432878,-650.0,0.00022433,2]
[366854092,1750517432887,-424.93363889,0.00022435,2]
[366854094,1750517432897,-201.46762402,0.00022564,2]
[366854096,1750517432906,-300.0,0.00022586,2]
[366854098,1750517432915,-300.0,0.00022586,2]
[366854100,1750517432924,-400.0,0.00022586,2]
[366854102,1750517432933,-207.4,0.00022586,2]
[366854104,1750517432943,-500.0,0.00022731,2]
[366854106,1750517432952,-506.31857721,0.00022809,2]
[366854108,1750517432962,-500.0,0.00022809,2]
[366854110,1750517432971,-500.0,0.00022825,2]
[366854112,1750517432982,-500.0,0.00022825,2]
[366854114,1750517432992,-500.0,0.00022825,2]
[366854116,1750517433002,-500.0,0.00022843,2]
[366854118,1750517433011,-437.31259665,0.00022843,2]
[366854120,1750517433020,-500.0,0.00022883,2]
[366854122,1750517433030,-524.15781602,0.00022902,2]
[366854124,1750517433040,-500.0,0.00023,2]
[366854126,1750517433050,-614.80548041,0.00023,2]
[366854128,1750517433060,-12337.53410898,0.00023001,2]
[366854130,1750517433069,-12025.6540147,0.00023001,2]
[366854132,1750517433079,-500.0,0.00023013,2]
[366854134,1750517433089,-501.49722536,0.00023013,2]
[366854136,1750517433100,-500.0,0.00023013,2]
[366854138,1750517433110,-387.43907623,0.00023013,2]
[366854140,1750517433120,-500.0,0.00023067,2]
[366854142,1750517433130,-500.0,0.00023067,2]
[366854144,1750517433141,-643.19,0.00023097,10]
[366854146,1750517433151,-622.44,0.00023109,10]
[366854148,1750517433161,-1000.0,0.00023132,2]
[366854150,1750517433171,-1000.0,0.00023133,2]
[366854152,1750517433180,-1610.41570496,0.00023134,2]
[366854154,1750517433192,-513.09277418,0.00023191,2]
[366854156,1750517433202,-389.22805106,0.000232,2]
[366854159,1750517433215,-110.77194894,0.000232,2]
[366854161,1750517433225,-524.15781597,0.00023219,2]
[366854162,1750517433234,-183.87672763,0.00023223,2]
[366854165,1750517433244,-168.0,0.00023224,2]
[366854167,1750517433254,-197.18895107,0.00023251,2]
[366854169,1750517433263,-694.44997085,0.00023279,2]
[366854171,1750517433274,-168.0,0.00023295,2]
[366854173,1750517433283,-535.99,0.00023311,10]
[366854175,1750517433293,-160.0,0.00023321,2]
[366854177,1750517433303,-846.23824438,0.00023321,2]
[366854179,1750517433313,-160.0,0.00023321,2]
[366854181,1750517433323,-213.55395994,0.00023321,2]
[366854183,1750517433332,-3693.0980972,0.00023321,2]
[366854185,1750517433344,-1938.59209441,0.00023321,2]
[366854187,1750517433356,-1044.8,0.00023321,2]
[366854196,1750517433440,-614.80548041,0.00023,2]
[366854198,1750517433451,-614.80548041,0.00023,2]
[366854200,1750517433466,-5872.68347346,0.00023321,2]
[366854202,1750517433477,-230.10342898,0.00023321,2]
[366854204,1750517433487,-278.84869915,0.00023335,2]
[366854206,1750517433498,-1000.0,0.00023357,2]
[366854208,1750517433509,-1011.35442707,0.00023373,2]
[366854210,1750517433519,-1000.0,0.00023373,2]
[366854212,1750517433530,-1000.0,0.00023391,2]
[366854214,1750517433542,-1000.0,0.00023431,2]
[366854216,1750517433552,-162.02882768,0.00023446,2]
[366854218,1750517433563,-4514.88,0.00023492,2]
[366854220,1750517433573,-2024.52,0.00023526,3]
[366854222,1750517433583,-524.15781597,0.00023537,2]
[366854223,1750517433594,-1000.0,0.0002356,2]
[366854226,1750517433605,-1709.59730179,0.00023608,3]
[366854234,1750517438178,-170.91631592,0.00023,2]
[366854235,1750517438188,-614.80548041,0.00023,2]
[366854236,1750517438198,-614.80548041,0.00023,2]
[366854237,1750517438208,-614.80548041,0.00023,2]
[366854238,1750517438218,-614.80548041,0.00023,2]
[366854239,1750517438227,-614.80548041,0.00023,2]
[366854240,1750517438238,-614.80548041,0.00023,2]
[366854242,1750517438248,-614.80548041,0.00023,2]
[366854243,1750517438258,-614.80548041,0.00023,2]
[366854244,1750517438268,-614.80548041,0.00023,2]
[366854245,1750517438277,-446.66,0.00023311,10]
[366854246,1750517438287,-836.41202323,0.0002332,2]
[366854247,1750517438297,-2769.33813303,0.0002332,2]
[366854248,1750517438310,-2694.80329158,0.0002332,2]
[366854249,1750517438319,-290.40269821,0.00023608,3]
[366854250,1750517438329,-1000.0,0.00023615,2]
[366854251,1750517438338,-1000.0,0.00023615,2]
[366854252,1750517438347,-421.73,0.00023718,3]
[366854253,1750517438356,-632.63,0.00023718,3]
[366854254,1750517438366,-1000.0,0.00023748,2]
[366854255,1750517438375,-524.15781597,0.00023854,2]
[366854256,1750517438384,-210.86,0.00023911,3]
[366854257,1750517438395,-1500.0,0.00023921,2]
[366854258,1750517438404,-215.0738,0.00023955,2]
[366854259,1750517438414,-1500.0,0.00023979,2]
[366854260,1750517438423,-442.3,0.00024,2]
[366854261,1750517438433,-171.0,0.00024,7]
[366854262,1750517438442,-2000.0,0.00024,2]
[366854263,1750517438453,-763.0,0.00024,3]
[366854264,1750517438465,-420.0,0.0002405,2]
[366854265,1750517438475,-159.0806219,0.00024082,2]
[366854266,1750517438484,-153.0,0.00024082,2]
[366854267,1750517438493,-574.5372799,0.00024082,2]
[366854268,1750517438502,-273.6815149,0.00024082,2]
[366854269,1750517438512,-177.2671816,0.00024082,2]
[366854270,1750517438522,-177.2671816,0.00024082,2]
[366854271,1750517438643,-159.0806219,0.00024082,2]
[366854272,1750517438652,-574.5372799,0.00024082,2]
[366854273,1750517438661,-159.0806219,0.00024082,2]
[366854274,1750517438671,-574.5372799,0.00024082,2]
[366854275,1750517438680,-177.2671816,0.00024082,2]
[366854276,1750517438689,-153.0,0.00024082,2]
[366854277,1750517438699,-153.0,0.00024082,2]
[366854278,1750517438708,-159.0806219,0.00024082,2]
[366854279,1750517438717,-574.5372799,0.00024082,2]
[366854280,1750517438726,-177.2671816,0.00024082,2]
[366854281,1750517438735,-175.4645442,0.00024082,2]
[366854282,1750517438745,-159.0806219,0.00024082,2]
[366854284,1750517438754,-153.0,0.00024082,2]
[366854286,1750517438763,-574.5372799,0.00024082,2]
[366854287,1750517438772,-153.0,0.00024082,2]
[366854289,1750517438782,-574.5372799,0.00024082,2]
[366854290,1750517438790,-159.0806219,0.00024082,2]
[366854291,1750517438800,-159.0806219,0.00024082,2]
[366854292,1750517438809,-153.0,0.00024082,2]
[366854293,1750517438818,-153.0,0.00024082,2]
[366854294,1750517438827,-574.5372799,0.00024082,2]
[366854295,1750517438837,-214.54111,0.00024108,7]
[366854296,1750517438846,-151.0,0.00024108,7]
[366854297,1750517438855,-151.0,0.00024108,7]
[366854298,1750517438864,-1500.0,0.00024108,2]
[366854299,1750517438873,-151.093005,0.00024141,7]
[366854300,1750517438882,-965.0,0.00024155,2]
[366854301,1750517438891,-654.0,0.00024155,2]
[366854302,1750517438901,-2161.0,0.00024155,2]
[366854303,1750517438910,-406.0,0.00024155,2]
[366854304,1750517438919,-152.636,0.00024155,2]
[366854305,1750517438928,-214.96736237,0.00024163,2]
[366854306,1750517438937,-1500.0,0.00024163,2]
[366854307,1750517438946,-524.15781597,0.00024172,2]
[366854308,1750517438956,-1309.26970439,0.00024231,2]
[366854309,1750517438964,-1500.0,0.00024296,2]
[366854310,1750517438974,-161.0,0.000243,7]
[366854311,1750517438983,-161.0,0.000243,10]
[366854312,1750517438992,-153.8295048,0.00024356,2]
[366854313,1750517439002,-247.0,0.00024365,2]
[366854314,1750517439011,-606.302749,0.00024401,4]
[366854315,1750517439020,-155.0,0.00024452,2]
[366854316,1750517439030,-792.0,0.00024479,2]
[366854317,1750517439039,-524.15781597,0.00024489,2]
[366854318,1750517439048,-171.0,0.00024498,2]
[366854319,1750517439057,-2000.0,0.00024527,2]
[366854320,1750517439066,-2000.0,0.000246,2]
[366854321,1750517439075,-640.0,0.000246,2]
[366854322,1750517439085,-800.0,0.00024647,2]
[366854323,1750517439094,-151.0,0.00024647,7]
[366854324,1750517439103,-151.0,0.00024647,7]
[366854325,1750517439112,-151.0,0.00024647,7]
[366854326,1750517439121,-151.0,0.00024647,7]
[366854327,1750517439130,-160.0,0.00024656,2]
[366854328,1750517439139,-524.09332521,0.00024656,2]
[366854329,1750517439148,-213.55395994,0.00024657,3]
[366854330,1750517439157,-846.23824438,0.00024657,3]
[366854331,1750517439166,-500.0,0.00024657,7]
[366854332,1750517439175,-151.0,0.00024657,7]